bitfinex/quotes_SOLUSD_20250417
["timestamp","ask_amount","ask_price","bid_price","bid_amount"]
[1744874513995,7.43328625,134.53,134.49,27.53353052]
[1744874514587,34.96681677,134.53,134.49,27.53353052]
[1744874514992,27.53353052,134.51,134.46,27.53353052]
[1744874515188,31.40143052,134.48,134.43,27.53353052]
[1744874515397,27.53353052,134.47,134.43,27.53353052]
[1744874515723,27.53353052,134.46,134.42,27.53353052]
[1744874515912,27.53353052,134.47,134.42,27.53353052]
[1744874516094,27.53353052,134.47,134.43,27.53353052]
[1744874516297,27.53353052,134.47,134.42,27.53353052]
[1744874516605,27.53353052,134.46,134.42,27.53353052]
[1744874516816,27.53353052,134.47,134.42,27.53353052]
[1744874517330,27.53353052,134.46,134.41,27.59653052]
[1744874517703,27.53353052,134.43,134.41,0.063]
[1744874517928,27.53353052,134.42,134.41,0.063]
[1744874518227,3.8679,134.48,134.41,27.59653052]
[1744874518404,31.40143052,134.48,134.43,27.53353052]
[1744874518929,31.40143052,134.48,134.44,27.53353052]
[1744874518930,3.8679,134.48,134.44,27.53353052]
[1744874519506,3.8679,134.48,134.45,27.53353052]
[1744874519704,3.8679,134.48,134.47,27.53353052]
[1744874520124,3.8679,134.48,134.47,60.97013347]
[1744874521200,8.95024992,134.54,134.47,60.97013347]
[1744874521436,8.95024992,134.54,134.5,27.53353052]
[1744874521598,0.03,134.64,134.58,89.35964886]
[1744874521801,0.03,134.64,134.63,27.53353052]
[1744874522020,0.03,134.64,134.61,27.53353052]
[1744874522227,0.03,134.64,134.61,34.96237382]
[1744874522543,0.03,134.64,134.61,27.53353052]
[1744874523827,0.03,134.64,134.62,27.53353052]
[1744874524037,0.03,134.64,134.63,27.53353052]
[1744874524732,0.03,134.64,134.63,34.9612955]
[1744874525116,0.03,134.64,134.63,62.49482602]
[1744874525815,0.03,134.64,134.63,81.42879802]
[1744874526138,0.03,134.68,134.64,18.933972]
[1744874526431,0.03,134.68,134.67,27.53353052]
[1744874527738,0.03,134.68,134.66,27.53353052]
[1744874527932,0.03,134.68,134.63,33.42776498]
[1744874528145,27.56353052,134.68,134.64,27.53353052]
[1744874528433,0.03,134.68,134.65,27.53353052]
[1744874528919,0.03,134.68,134.66,27.53353052]
[1744874529745,0.03,134.68,134.65,27.53353052]
[1744874530044,2.50349576,134.49,134.41,0.063]
[1744874530209,30.03702628,134.49,134.41,0.063]
[1744874530413,27.53353052,134.47,134.41,0.063]
[1744874530631,27.53353052,134.48,134.43,27.53353052]
[1744874531221,27.53353052,134.48,134.41,26.063]
[1744874531222,2.50349576,134.49,134.42,27.53353052]
[1744874531438,27.53353052,134.45,134.41,0.063]
[1744874531637,27.53353052,134.44,134.41,0.063]
[1744874531847,27.53353052,134.45,134.41,0.063]
[1744874532038,27.53353052,134.47,134.43,26.0]
[1744874532237,27.53353052,134.47,134.42,53.53353052]
[1744874532418,2.50349576,134.49,134.48,26.0]
[1744874532625,2.50349576,134.49,134.48,27.53353052]
[1744874533231,2.50349576,134.49,134.48,46.46750252]
[1744874534538,2.50349576,134.49,134.48,27.53353052]
[1744874534744,2.50349576,134.49,134.48,53.53353052]
[1744874534924,30.03702628,134.49,134.43,18.64964886]
[1744874535123,30.03702628,134.49,134.45,27.53353052]
[1744874535349,2.50349576,134.49,134.46,26.0]
[1744874535818,30.03702628,134.49,134.46,26.0]
[1744874536021,2.50349576,134.49,134.46,26.0]
[1744874536328,27.53353052,134.5,134.46,53.53353052]
[1744874536527,27.53353052,134.49,134.46,26.0]
[1744874537444,27.53353052,134.49,134.45,53.53353052]
[1744874537945,27.53353052,134.48,134.45,26.0]
[1744874538254,27.53353052,134.47,134.42,27.53353052]
[1744874538555,17.14,134.5,134.45,27.53353052]
[1744874538843,7.43393281,134.52,134.47,27.53353052]
[1744874539046,34.96746333,134.52,134.47,27.53353052]
[1744874539252,27.53353052,134.51,134.47,27.53353052]
[1744874539755,27.53353052,134.51,134.46,27.53353052]
[1744874539928,34.96811161,134.51,134.46,27.53353052]
[1744874540420,27.53353052,134.51,134.47,27.53353052]
[1744874540622,27.53353052,134.51,134.47,53.53353052]
[1744874540844,27.53353052,134.55,134.5,27.53353052]
[1744874541223,34.96571186,134.55,134.51,27.53353052]
[1744874542831,7.43218134,134.55,134.51,27.53353052]
[1744874543036,34.96571186,134.55,134.51,27.53353052]
[1744874543645,17.19,134.57,134.54,27.53353052]
[1744874543646,7.46112129,134.57,134.54,27.53353052]
[1744874544025,7.46112129,134.57,134.53,27.53353052]
[1744874544237,34.99465181,134.57,134.52,27.53353052]
[1744874544438,0.03,134.57,134.56,27.53353052]
[1744874545253,0.03,134.57,134.56,53.53353052]
[1744874546166,0.03,134.57,134.56,60.96515953]
[1744874547165,0.03,134.57,134.56,53.53353052]
[1744874547337,0.03,134.57,134.56,60.96515953]
[1744874548360,0.03,134.57,134.56,34.96515953]
[1744874548566,0.03,134.57,134.56,53.89913153]
[1744874551475,0.03,134.57,134.56,34.96515953]
[1744874551767,0.03,134.57,134.56,60.96515953]
[1744874552269,27.56353052,134.57,134.51,7.43439149]
[1744874552468,27.53353052,134.56,134.51,27.53353052]
[1744874552649,27.53353052,134.55,134.5,34.96828618]
[1744874552967,27.53353052,134.55,134.51,26.0]
[1744874553149,27.53353052,134.55,134.51,53.53353052]
[1744874553636,34.96536527,134.56,134.51,53.53353052]
[1744874554043,27.53353052,134.54,134.49,27.53353052]
[1744874554360,27.53353052,134.53,134.49,27.53353052]
[1744874554875,27.53353052,134.53,134.49,53.53353052]
[1744874555155,34.96684235,134.53,134.49,53.53353052]
[1744874555659,7.43331183,134.53,134.49,53.53353052]
[1744874556248,27.53353052,134.53,134.49,53.53353052]
[1744874556451,27.53353052,134.51,134.49,26.0]
[1744874556644,27.53353052,134.5,134.46,27.53353052]
[1744874556851,27.53353052,134.53,134.48,27.53353052]
[1744874557058,27.53353052,134.53,134.49,27.53353052]
[1744874557367,27.53353052,134.53,134.48,27.53353052]
[1744874557549,27.53353052,134.53,134.49,27.53353052]
[1744874558062,27.53353052,134.54,134.5,27.53353052]
[1744874558262,52.82589866,134.55,134.5,27.53353052]
[1744874558836,52.82589866,134.55,134.51,27.53353052]
[1744874559362,52.82589866,134.55,134.5,27.53353052]
[1744874559565,27.53353052,134.54,134.5,27.53353052]
[1744874560065,52.82589866,134.55,134.5,27.53353052]
[1744874561574,0.03,134.57,134.56,26.0]
[1744874561869,0.03,134.57,134.56,53.53353052]
[1744874562056,0.03,134.57,134.5,113.02321574]
[1744874562263,0.03,134.57,134.53,26.0]
[1744874562264,27.56353052,134.57,134.53,26.0]
[1744874562576,0.03,134.57,134.53,53.53353052]
[1744874562869,0.03,134.57,134.54,27.53353052]
[1744874563048,0.03,134.57,134.54,34.96624552]
[1744874563666,0.03,134.57,134.54,7.432715]
[1744874565270,0.03,134.57,134.54,34.96624552]
[1744874565775,0.03,134.57,134.56,27.53353052]
[1744874565973,1e-08,134.57,134.56,73.7167099]
[1744874566273,1e-08,134.57,134.56,74.00103304]
[1744874566975,1e-08,134.57,134.56,46.46750252]
[1744874567474,1e-08,134.57,134.56,53.89913153]
[1744874572085,1e-08,134.57,134.56,7.43162901]
[1744874572258,1e-08,134.57,134.56,33.43162901]
[1744874572580,1e-08,134.57,134.55,34.96554126]
[1744874573251,1e-08,134.57,134.54,27.53353052]
[1744874573452,27.53353052,134.56,134.51,27.53353052]
[1744874573648,27.53353052,134.56,134.52,27.53353052]
[1744874573850,27.53353053,134.57,134.52,27.53353052]
[1744874574071,34.96473893,134.57,134.52,34.9672464]
[1744874574269,34.96473893,134.57,134.53,27.53353052]
[1744874574884,27.53353052,134.56,134.52,34.9672464]
[1744874575379,34.96473893,134.57,134.53,27.53353052]
[1744874576862,27.53353053,134.57,134.53,34.96681047]
[1744874577364,1e-08,134.57,134.54,27.53353052]
[1744874577680,1e-08,134.57,134.56,27.53353052]
[1744874578181,1e-08,134.57,134.55,34.96571186]
[1744874578568,1e-08,134.57,134.54,26.0]
[1744874579073,27.53353052,134.55,134.51,27.53353052]
[1744874579255,27.53353052,134.54,134.5,53.53353052]
[1744874579578,34.96632028,134.54,134.5,53.53353052]
[1744874579757,34.96632028,134.54,134.5,27.53353052]
[1744874580179,34.96632028,134.54,134.49,53.53353052]
[1744874581362,34.96632028,134.54,134.49,60.96891902]
[1744874582176,7.43278976,134.54,134.5,27.53353052]
[1744874582381,1.6358,134.55,134.5,34.96816812]
[1744874582690,29.16933052,134.55,134.51,27.53353052]
[1744874582875,27.53353052,134.54,134.5,27.53353052]
[1744874583558,27.53353052,134.53,134.49,33.43527513]
[1744874583755,27.53353052,134.53,134.49,60.96880565]
[1744874584181,27.03353052,134.53,134.49,60.96880565]
[1744874584573,27.03353052,134.53,134.49,33.43527513]
[1744874584761,27.03353052,134.53,134.49,33.43545206]
[1744874585085,27.03353052,134.53,134.49,60.96898258]
[1744874585586,27.53353052,134.53,134.5,27.53353052]
[1744874586084,27.53353052,134.51,134.47,33.43660295]
[1744874586383,27.53353052,134.52,134.48,27.53353052]
[1744874587169,27.53353052,134.52,134.47,33.43660295]
[1744874587170,34.96749891,134.52,134.47,53.53353052]
[1744874587375,27.53353052,134.5,134.46,45.09653052]
[1744874587687,27.53353052,134.49,134.46,0.063]
[1744874588482,34.96908788,134.49,134.46,0.063]
[1744874589281,82.8,134.53,134.48,27.53353052]
[1744874589492,27.53353052,134.52,134.48,27.53353052]
[1744874589663,110.33353052,134.53,134.49,27.53353052]
[1744874589978,34.96690178,134.53,134.49,27.53353052]
[1744874590182,34.96690178,134.53,134.48,27.53353052]
[1744874590886,34.96690178,134.53,134.48,34.96940587]
[1744874591091,34.96690178,134.53,134.49,27.53353052]
[1744874592200,23.5634,134.54,134.5,27.53353052]
[1744874592494,6.0634,134.54,134.51,34.96780759]
[1744874592798,6.0634,134.54,134.51,27.53353052]
[1744874593165,6.0634,134.54,134.5,34.9683186]
[1744874594077,27.53353052,134.52,134.47,26.0]
[1744874594281,27.53353052,134.52,134.48,27.53353052]
[1744874594778,27.53353052,134.51,134.47,26.0]
[1744874594979,27.53353052,134.5,134.46,27.59653052]
[1744874595281,27.53353052,134.48,134.46,0.063]
[1744874596073,34.96973156,134.48,134.46,0.063]
[1744874596671,27.53353052,134.47,134.46,0.063]
[1744874596877,18.933972,134.46,134.42,0.063]
[1744874597078,27.53353052,134.43,134.42,0.063]
[1744874598296,34.97234626,134.43,134.42,0.063]
[1744874598465,34.97184242,134.44,134.42,0.063]
[1744874599396,27.53353052,134.43,134.42,0.063]
[1744874599575,82.8,134.45,134.42,0.063]
[1744874599775,34.97079561,134.46,134.42,0.063]
[1744874602098,27.53353052,134.45,134.42,0.063]
[1744874602686,27.53353052,134.46,134.42,27.59653052]
[1744874603092,27.53353052,134.46,134.42,35.03584953]
[1744874603275,27.53353052,134.46,134.42,0.063]
[1744874603476,27.53353052,134.43,134.42,0.063]
[1744874605175,26.14089476,134.43,134.42,0.063]
[1744874606095,7.43840037,134.44,134.42,0.063]
[1744874606403,18.70207902,134.43,134.42,0.063]
[1744874607900,127.87486676,134.43,134.42,0.063]
[1744874608103,18.933972,134.42,134.41,0.063]
[1744874608301,54.65605102,134.42,134.41,0.063]
[1744874608975,74.91083004,134.42,134.39,0.063]
[1744874609175,43.97515102,134.4,134.39,0.063]
[1744874609791,51.41562721,134.4,134.39,0.063]
[1744874610504,1.5527,134.42,134.39,0.063]
[1744874610804,20.25477902,134.42,134.39,0.063]
[1744874613005,15.60158898,134.49,134.41,44.70207902]
[1744874613191,8.1659,134.49,134.45,18.70207902]
[1744874613907,26.86797902,134.49,134.45,18.70207902]
[1744874614107,34.30357002,134.49,134.44,18.70207902]
[1744874614309,18.70207902,134.48,134.43,18.70207902]
[1744874614605,18.70207902,134.45,134.41,26.1418602]
[1744874614802,18.64964886,134.48,134.42,18.70207902]
[1744874614803,18.70207902,134.46,134.42,18.70207902]
[1744874615101,18.70207902,134.46,134.41,7.43978118]
[1744874615306,27.61207815,134.46,134.42,27.61207815]
[1744874616306,27.61207815,134.45,134.42,7.43916631]
[1744874616495,27.61207815,134.46,134.42,35.05124446]
[1744874616689,27.61207815,134.45,134.41,35.05197289]
[1744874616900,27.61207815,134.44,134.39,27.67507815]
[1744874617106,27.61207815,134.43,134.39,27.67507815]
[1744874618002,27.61207815,134.43,134.39,35.11562745]
[1744874618881,27.61207815,134.43,134.39,27.67507815]
[1744874619109,27.61207815,134.42,134.39,0.063]
[1744874619602,27.61207815,134.42,134.39,7.50401714]
[1744874619806,27.61207815,134.43,134.39,7.50401714]
[1744874619995,27.61207815,134.43,134.39,35.11609529]
[1744874621814,7.43840319,134.44,134.39,35.11609529]
[1744874621995,35.0510475,134.43,134.39,27.67507815]
[1744874622816,35.0510475,134.43,134.39,35.11605168]
[1744874623515,27.61207815,134.43,134.39,35.11605168]
[1744874624715,35.0505789,134.44,134.4,27.61207815]
[1744874626913,35.0505789,134.44,134.39,27.67507815]
[1744874627614,27.61207815,134.41,134.39,0.063]
[1744874629219,35.05223775,134.41,134.39,0.063]
[1744874629598,27.61207815,134.43,134.39,27.67507815]
[1744874630004,27.61207815,134.4,134.39,0.063]
[1744874630613,46.26172701,134.4,134.39,0.063]
[1744874631421,53.7022032,134.4,134.39,0.063]
[1744874632420,17.02,134.43,134.39,27.67507815]
[1744874632631,52.07109108,134.43,134.39,27.67507815]
[1744874632803,27.61207815,134.42,134.39,0.063]
[1744874633004,27.61207815,134.41,134.39,0.063]
[1744874633325,27.61207815,134.4,134.39,0.063]
[1744874633511,35.05255434,134.4,134.39,0.063]
[1744874637129,26.15068816,134.4,134.39,0.063]
[1744874640328,44.80033702,134.4,134.39,0.063]
[1744874640524,26.15068816,134.4,134.39,0.063]
[1744874640719,44.80033702,134.4,134.39,0.063]
[1744874640927,26.15068816,134.4,134.39,0.063]
[1744874643428,44.80033702,134.4,134.39,0.063]
[1744874643636,26.15068816,134.4,134.39,0.063]
[1744874643845,44.80033702,134.4,134.39,0.063]
[1744874648111,7.44047619,134.4,134.39,0.063]
[1744874648624,26.15068816,134.4,134.39,0.063]
[1744874649331,44.80033702,134.4,134.39,0.063]
[1744874650837,127.60033702,134.4,134.39,0.063]
[1744874657028,108.95068816,134.4,134.39,0.063]
[1744874657235,127.60033702,134.4,134.39,0.063]
[1744874657720,108.95068816,134.4,134.39,0.063]
[1744874658948,127.60033702,134.4,134.39,0.063]
[1744874659252,132.28752685,134.4,134.39,0.063]
[1744874659728,75.48752685,134.4,134.39,0.063]
[1744874661437,63.78882595,134.4,134.39,0.063]
[1744874663250,75.48752685,134.4,134.39,0.063]
[1744874666552,92.08752685,134.4,134.39,0.063]
[1744874669258,42.69012505,134.4,134.39,0.063]
[1744874669430,54.38882595,134.4,134.39,0.063]
[1744874669732,42.69012505,134.4,134.39,0.063]
[1744874669933,54.38882595,134.4,134.39,0.063]
[1744874670655,42.69012505,134.4,134.39,0.063]
[1744874671363,26.09012505,134.4,134.39,0.063]
[1744874672361,16.04,134.43,134.39,0.063]
[1744874672536,90.23844497,134.44,134.4,11.6987009]
[1744874672740,7.43796827,134.45,134.41,11.6987009]
[1744874673061,19.13666917,134.45,134.41,11.6987009]
[1744874673648,106.27741346,134.46,134.43,11.6987009]
[1744874674239,117.97611436,134.46,134.42,11.6987009]
[1744874677348,35.17611436,134.46,134.42,11.6987009]
[1744874678165,11.6987009,134.45,134.39,26.063]
[1744874678343,11.6987009,134.45,134.41,11.6987009]
[1744874679264,19.13685723,134.45,134.41,11.6987009]
[1744874679461,19.13685723,134.45,134.39,33.50352623]
[1744874679462,30.34834976,134.44,134.39,0.063]
[1744874679764,19.13685723,134.45,134.41,11.6987009]
[1744874680260,23.47734014,134.46,134.41,11.6987009]
[1744874680558,11.6987009,134.45,134.41,11.6987009]
[1744874681463,7.4380275,134.45,134.42,11.6987009]
[1744874682054,16.04,134.46,134.43,11.6987009]
[1744874682658,16.04,134.46,134.44,11.6987009]
[1744874682969,7.43723605,134.46,134.4,19.13909076]
[1744874683278,19.13593695,134.46,134.42,11.6987009]
[1744874683970,11.6987009,134.43,134.39,11.7617009]
[1744874684185,11.6987009,134.42,134.39,11.7617009]
[1744874684472,11.6987009,134.42,134.39,0.063]
[1744874684641,11.6987009,134.42,134.39,11.7617009]
[1744874685573,11.6987009,134.43,134.39,11.7617009]
[1744874685977,7.43826242,134.44,134.41,11.6987009]
[1744874686392,19.13696332,134.44,134.4,11.6987009]
[1744874686870,11.6987009,134.43,134.39,11.7617009]
[1744874687069,11.6987009,134.43,134.39,0.063]
[1744874687262,11.6987009,134.42,134.39,0.063]
[1744874687647,7.43992262,134.41,134.39,0.063]
[1744874688878,7.43936914,134.42,134.39,0.063]
[1744874689468,19.13807004,134.42,134.39,0.063]
[1744874693177,7.48148218,134.42,134.39,0.063]
[1744874695373,7.43992262,134.41,134.39,0.063]
[1744874695778,14.9214048,134.41,134.39,0.063]
[1744874696157,7.48148218,134.4,134.39,0.063]
[1744874697185,7.43992262,134.41,134.39,0.063]
[1744874697378,7.48148218,134.4,134.39,0.063]
[1744874697573,14.92195837,134.4,134.39,0.063]
[1744874698582,14.92161547,134.41,134.39,0.063]
[1744874698887,7.44013329,134.41,134.39,0.063]
[1744874699259,14.92161547,134.41,134.39,0.063]
[1744874701176,90.28148218,134.42,134.39,0.063]
[1744874701380,30.95945111,134.45,134.41,7.48148218]
[1744874701583,30.95945111,134.45,134.4,7.48148218]
[1744874701882,7.48148218,134.44,134.4,7.48148218]
[1744874702191,30.95945111,134.45,134.41,7.48148218]
[1744874703279,7.48148218,134.44,134.4,7.48148218]
[1744874703491,30.95945111,134.45,134.41,7.48148218]
[1744874705472,30.95945111,134.45,134.4,14.92187374]
[1744874705671,30.95945111,134.45,134.4,7.48148218]
[1744874705880,7.48148218,134.44,134.4,7.48148218]
[1744874706689,14.92014785,134.44,134.4,7.48148218]
[1744874707288,7.48148218,134.43,134.39,0.063]
[1744874707597,7.48148218,134.42,134.39,0.063]
[1744874709197,14.92119702,134.42,134.39,0.063]
[1744874709900,7.48148218,134.4,134.39,0.063]
[1744874710199,56.05705976,134.4,134.39,0.063]
[1744874710368,71.77705976,134.4,134.39,0.063]
[1744874710980,41.85113104,134.4,134.39,0.063]
[1744874711385,49.29160723,134.4,134.39,0.063]
[1744874711791,132.09160723,134.4,134.39,0.063]
[1744874714689,162.01753595,134.4,134.39,0.063]
[1744874714881,18.64964886,134.39,134.38,1e-08]
[1744874715079,26.13113104,134.39,134.36,0.063]
[1744874715304,26.13113104,134.37,134.36,0.063]
[1744874716512,26.13113104,134.37,134.35,1e-08]
[1744874716513,18.64964886,134.36,134.35,1e-08]
[1744874716807,26.13113104,134.36,134.35,1e-08]
[1744874718481,33.57382231,134.36,134.35,1e-08]
[1744874720606,33.57292599,134.38,134.35,1e-08]
[1744874721308,7.48148218,134.37,134.35,1e-08]
[1744874721612,14.92394658,134.37,134.35,1e-08]
[1744874727193,14.9232972,134.38,134.35,1e-08]
[1744874727393,23.16072901,134.4,134.36,7.48148218]
[1744874727594,108.93113104,134.42,134.38,7.48148218]
[1744874727902,0.03,134.43,134.4,7.48148218]
[1744874728210,0.03,134.43,134.39,7.48148218]
[1744874728818,0.03,134.43,134.41,7.48148218]
[1744874728986,0.03,134.43,134.42,7.48148218]
[1744874729309,0.03,134.43,134.42,11.68199809]
[1744874730415,11.71199809,134.43,134.39,11.68199809]
[1744874730594,11.68199809,134.42,134.38,11.68199809]
[1744874730915,0.03,134.43,134.39,11.68199809]
[1744874730916,11.71199809,134.43,134.39,11.68199809]
[1744874731617,19.15094844,134.43,134.39,11.68199809]
[1744874732404,0.03,134.43,134.41,11.68199809]
[1744874732608,0.03,134.43,134.4,11.68199809]
[1744874733111,19.15084036,134.43,134.39,11.68199809]
[1744874734416,11.68199809,134.42,134.38,11.68199809]
[1744874734604,19.15084036,134.43,134.39,11.68199809]
[1744874735724,0.03,134.43,134.4,11.68199809]
[1744874739320,0.03,134.43,134.41,11.68199809]
[1744874739615,0.03,134.43,134.4,11.68199809]
[1744874742025,11.71199809,134.43,134.39,11.68199809]
[1744874742327,11.68199809,134.41,134.37,37.68199809]
[1744874742518,11.68199809,134.42,134.38,11.68199809]
[1744874742699,0.03,134.43,134.39,11.68199809]
[1744874743726,11.71199809,134.43,134.39,11.68199809]
[1744874744721,0.03,134.43,134.39,11.68199809]
[1744874744926,0.03,134.43,134.4,11.68199809]
[1744874745605,11.71199809,134.43,134.39,11.68199809]
[1744874745806,0.03,134.43,134.4,11.68199809]
[1744874746529,0.03,134.43,134.42,11.68199809]
[1744874746904,0.03,134.43,134.41,11.68199809]
[1744874748024,0.03,134.43,134.39,37.68199809]
[1744874748328,11.71199809,134.43,134.39,37.68199809]
[1744874749124,7.5103912,134.43,134.39,33.4803912]
[1744874749426,14.94950124,134.43,134.39,33.4803912]
[1744874749623,14.94950124,134.43,134.39,7.4803912]
[1744874749814,7.4803912,134.42,134.38,7.4803912]
[1744874750410,7.4803912,134.41,134.37,33.4803912]
[1744874750829,7.4803912,134.38,134.35,1e-08]
[1744874751040,7.4803912,134.37,134.35,1e-08]
[1744874751202,7.4803912,134.38,134.35,1e-08]
[1744874751403,14.92252858,134.37,134.35,1e-08]
[1744874753135,19.13992436,134.37,134.35,1e-08]
[1744874754435,7.44213738,134.37,134.35,1e-08]
[1744874755730,19.13992436,134.37,134.35,1e-08]
[1744874756118,19.13956083,134.38,134.35,1e-08]
[1744874756313,110.21778698,134.4,134.35,11.69778699]
[1744874756534,15.72,134.4,134.37,11.69778698]
[1744874756742,34.85839812,134.4,134.35,11.69778699]
[1744874756947,11.69778698,134.38,134.35,1e-08]
[1744874757428,11.69778698,134.39,134.35,11.69778699]
[1744874757814,19.13905737,134.39,134.35,11.69778699]
[1744874758627,11.69778698,134.38,134.35,1e-08]
[1744874760033,11.69778698,134.37,134.35,1e-08]
[1744874760215,11.69778698,134.36,134.35,1e-08]
[1744874761644,19.13988836,134.38,134.35,1e-08]
[1744874762246,11.69778698,134.36,134.35,1e-08]
[1744874762421,11.69778698,134.37,134.35,1e-08]
[1744874763141,7.44210138,134.38,134.35,1e-08]
[1744874763347,11.69778698,134.37,134.35,1e-08]
[1744874764031,19.14031846,134.37,134.35,1e-08]
[1744874764631,11.69778698,134.36,134.35,1e-08]
[1744874764832,30.34743584,134.36,134.35,1e-08]
[1744874765537,9.09203148,134.37,134.35,1e-08]
[1744874765727,20.78981846,134.37,134.35,1e-08]
[1744874765931,30.34743584,134.36,134.35,1e-08]
[1744874766324,11.69778698,134.36,134.35,1e-08]
[1744874766525,30.34743584,134.36,134.35,1e-08]
[1744874768051,37.79012711,134.36,134.35,1e-08]
[1744874768551,120.59012711,134.36,134.35,1e-08]
[1744874773255,116.3803333,134.36,134.35,1e-08]
[1744874773850,7.44227414,134.37,134.35,1e-08]
[1744874774357,14.93026731,134.37,134.35,1e-08]
[1744874777865,7.48799317,134.37,134.35,1e-08]
[1744874778161,23.1617585,134.38,134.35,1e-08]
[1744874778162,15.72,134.38,134.35,1e-08]
[1744874778363,15.72,134.38,134.35,7.48799318]
[1744874779355,7.48799317,134.39,134.35,1e-08]
[1744874780267,7.48799317,134.38,134.35,1e-08]
[1744874780959,7.48799317,134.37,134.35,1e-08]
[1744874781970,82.8,134.39,134.35,7.48799318]
[1744874782161,23.16072574,134.4,134.36,7.48799317]
[1744874782958,15.72,134.4,134.36,14.93062882]
[1744874783650,15.72,134.4,134.37,7.48799317]
[1744874783855,15.72,134.4,134.38,7.48799317]
[1744874784259,15.72,134.4,134.38,14.92949953]
[1744874784672,15.72,134.4,134.37,7.48799317]
[1744874784994,23.20799317,134.4,134.35,1e-08]
[1744874785186,27.41268062,134.4,134.36,11.69268062]
[1744874785476,34.85346359,134.4,134.36,11.69268062]
[1744874785779,23.16078297,134.4,134.36,11.69268062]
[1744874785961,23.16078297,134.4,134.36,19.13523859]
[1744874786173,15.72,134.4,134.37,11.69268062]
[1744874786469,15.72,134.4,134.38,11.69268062]
[1744874787771,23.16064558,134.4,134.36,11.69268062]
[1744874788476,15.72,134.4,134.37,11.69268062]
[1744874788786,0.03,134.43,134.39,11.69268062]
[1744874788991,0.03,134.43,134.4,11.69268062]
[1744874789972,0.03,134.43,134.4,19.13314783]
[1744874791274,0.03,134.43,134.41,11.69268062]
[1744874792160,0.03,134.43,134.42,11.69268062]
[1744874799397,0.03,134.43,134.41,11.69268062]
[1744874799693,0.03,134.43,134.4,33.44006176]
[1744874799694,0.03,134.43,134.4,37.69268062]
[1744874800191,0.03,134.43,134.41,11.69268062]
[1744874800600,0.03,134.43,134.42,11.69268062]
[1744874802377,0.03,134.43,134.42,19.13204976]
[1744874802881,0.03,134.43,134.42,11.69268062]
[1744874805181,0.03,134.43,134.42,7.47626843]
[1744874806906,0.03,134.43,134.42,14.91563757]
[1744874810105,0.03,134.43,134.42,7.47626843]
[1744874813985,0.03,134.43,134.42,14.91563757]
[1744874814599,0.03,134.43,134.42,7.47626843]
[1744874814799,0.03,134.43,134.42,14.91563757]
[1744874815582,0.03,134.43,134.42,7.47626843]
[1744874817918,0.03,134.43,134.42,14.91563757]
[1744874819087,0.03,134.43,134.42,40.91563757]
[1744874820618,0.03,134.43,134.37,33.44213738]
[1744874820911,0.03,134.43,134.4,7.47626843]
[1744874823918,0.03,134.43,134.42,33.47626843]
[1744874824708,0.03,134.43,134.42,40.91563757]
[1744874826899,0.03,134.44,134.42,40.91563757]
[1744874827200,0.03,134.44,134.43,7.47626843]
[1744874828105,0.03,134.47,134.46,26.0]
[1744874828312,0.03,134.47,134.46,33.47626843]
[1744874828717,0.03,134.47,134.46,40.91342446]
[1744874829617,0.03,134.47,134.46,70.81849818]
[1744874830730,0.03,134.47,134.46,44.81849818]
[1744874830930,0.03,134.49,134.48,26.0]
[1744874831234,0.03,134.49,134.48,33.47626843]
[1744874831438,0.03,134.49,134.48,7.47626843]
[1744874831817,0.03,134.49,134.48,33.47626843]
[1744874833536,0.03,134.49,134.48,40.9123184]
[1744874839337,0.03,134.49,134.48,7.47626843]
[1744874839545,0.03,134.49,134.47,14.91266997]
[1744874839714,0.03,134.49,134.47,40.91266997]
[1744874840436,0.03,134.49,134.48,7.47626843]
[1744874840642,0.03,134.49,134.48,14.9123184]
[1744874841436,0.03,134.49,134.48,7.47626843]
[1744874842040,0.03,134.49,134.48,14.9123184]
[1744874843140,0.03,134.49,134.47,33.43638076]
[1744874843327,0.03,134.49,134.48,7.47626843]
[1744874843748,0.03,134.49,134.47,7.47626843]
[1744874844326,0.03,134.49,134.45,26.0]
[1744874844517,9.07676843,134.48,134.41,7.43992262]
[1744874844723,1.6005,134.48,134.45,7.47626843]
[1744874845017,0.03,134.49,134.47,14.91265386]